bitfinex/quotes_BTCUSD_20250326
["timestamp","ask_amount","ask_price","bid_price","bid_amount"]
[1742991491557,0.53947701,88038.0,88031.0,0.0021697]
[1742991491790,5.71545732,88038.0,88031.0,0.0021697]
[1742991492191,0.71545732,88038.0,88031.0,0.0021697]
[1742991492424,5.71545732,88038.0,88031.0,0.0021697]
[1742991492601,0.00094501,88023.0,88022.0,0.0803]
[1742991492858,6.2221035,88023.0,88022.0,0.0803]
[1742991493112,6.2221035,88023.0,88020.0,0.049]
[1742991493113,0.55406086,88022.0,88020.0,0.049]
[1742991493320,0.55406086,88022.0,88001.0,0.002]
[1742991493321,5.70075397,88022.0,88010.0,0.0803]
[1742991493526,5.71550113,88022.0,88010.0,0.0803]
[1742991494265,0.55407486,88017.0,88004.0,0.0803]
[1742991494477,5.82820797,88017.0,88004.0,0.0803]
[1742991494659,5.84295415,88017.0,88004.0,0.0803]
[1742991495038,5.84295415,88017.0,88001.0,0.002]
[1742991495039,0.53957501,88002.0,88001.0,0.002]
[1742991495245,6.23980897,88002.0,88001.0,0.002]
[1742991495461,6.25441673,88002.0,88001.0,0.002]
[1742991496256,6.12701673,88002.0,88001.0,0.00241104]
[1742991496464,6.32255256,88002.0,88001.0,0.00241104]
[1742991496669,6.32755256,88002.0,88001.0,0.00241104]
[1742991496872,0.53959401,87995.0,87994.0,0.06545677]
[1742991497078,5.6683925,87995.0,87994.0,0.06545677]
[1742991497237,5.71543687,87995.0,87994.0,0.06545677]
[1742991497679,5.7785727,87995.0,87994.0,0.06545677]
[1742991498533,6.1901727,87995.0,87994.0,0.06545677]
[1742991499217,6.1951727,87995.0,87994.0,0.06545677]
[1742991499423,6.2001727,87995.0,87994.0,0.06545677]
[1742991500473,5.26162169,87995.0,87994.0,0.06545677]
[1742991500607,5.03761884,87995.0,87994.0,0.06545677]
[1742991500809,5.03761884,87995.0,87994.0,0.11255677]
[1742991501021,3.52664284,87995.0,87994.0,0.11255677]
[1742991501243,3.30371154,87995.0,87994.0,0.11255677]
[1742991501661,3.00215354,87995.0,87994.0,0.11255677]
[1742991502528,2.99715354,87995.0,87994.0,0.11255677]
[1742991502667,2.99215354,87995.0,87994.0,0.11255677]
[1742991502866,2.87479354,87995.0,87994.0,0.11255677]
[1742991503073,2.68750954,87995.0,87994.0,0.11255677]
[1742991503336,2.68746954,87995.0,87994.0,0.11255677]
[1742991507326,2.27586954,87995.0,87994.0,0.11255677]
[1742991508427,2.27586954,87995.0,87994.0,0.11118157]
[1742991511551,0.56618654,87995.0,87994.0,0.11118157]
[1742991511754,5.54573954,87995.0,87994.0,0.11118157]
[1742991511998,5.48985454,87995.0,87994.0,0.11118157]
[1742991513256,5.71713954,87995.0,87994.0,0.11118157]
[1742991513405,5.48985454,87995.0,87994.0,0.11118157]
[1742991513778,4.31666254,87995.0,87994.0,0.11118157]
[1742991513977,4.06068254,87995.0,87994.0,0.11118157]
[1742991514133,4.28796754,87995.0,87994.0,0.11118157]
[1742991514311,4.32048624,87995.0,87994.0,0.11118157]
[1742991514710,4.09320124,87995.0,87994.0,0.11118157]
[1742991515335,4.33185024,87995.0,87994.0,0.11118157]
[1742991516735,4.32048624,87995.0,87994.0,0.11118157]
[1742991516934,3.11874324,87995.0,87994.0,0.11118157]
[1742991518497,3.05037024,87995.0,87994.0,0.10979107]
[1742991520126,2.92305024,87995.0,87994.0,0.10979107]
[1742991520371,1.00792756,87995.0,87994.0,0.10979107]
[1742991520533,0.92724746,87995.0,87994.0,0.10979107]
[1742991521335,0.95979992,87995.0,87994.0,0.10979107]
[1742991522543,0.9419986,87995.0,87994.0,0.10979107]
[1742991527696,0.8148786,87995.0,87994.0,0.10979107]
[1742991528000,0.9419986,87995.0,87994.0,0.10979107]
[1742991528360,0.9419986,87995.0,87994.0,0.10853962]
[1742991529222,0.9420386,87995.0,87994.0,0.10853962]
[1742991530012,0.95983877,87995.0,87994.0,0.10853962]
[1742991530888,0.61671877,87995.0,87994.0,0.10853962]
[1742991531345,1.83445677,87995.0,87994.0,0.10853962]
[1742991531771,1.55634277,87995.0,87994.0,0.10853962]
[1742991532274,1.42918277,87995.0,87994.0,0.10853962]
[1742991532506,0.4717586,87995.0,87994.0,0.11259461]
[1742991532713,0.43920614,87995.0,87994.0,0.11259461]
[1742991533309,0.42920614,87995.0,87994.0,0.11259461]
[1742991533625,0.3199485,87995.0,87994.0,0.11259461]
[1742991533742,0.3249485,87995.0,87994.0,0.11259461]
[1742991538972,0.34274725,87995.0,87994.0,0.11259461]
[1742991541964,2.01762489,87995.0,87994.0,0.0472698]
[1742991542140,2.32768189,87995.0,87994.0,0.0472698]
[1742991542340,2.31185789,87995.0,87994.0,0.0472698]
[1742991542542,2.29405914,87995.0,87994.0,0.0472698]
[1742991542746,0.43920614,87995.0,87994.0,0.0472698]
[1742991543751,2.95928314,87995.0,87994.0,0.0472698]
[1742991544256,2.95928314,87995.0,87994.0,0.0001698]
[1742991544400,2.99185745,87995.0,87994.0,0.0001698]
[1742991545395,2.63271045,87995.0,87994.0,0.0001698]
[1742991545522,2.63771045,87995.0,87994.0,0.0001698]
[1742991546593,2.63271045,87995.0,87994.0,0.0001698]
[1742991546792,2.63771045,87995.0,87994.0,0.0001698]
[1742991547021,1.68720545,87995.0,87994.0,0.0001698]
[1742991547255,1.65021645,87995.0,87994.0,0.0001698]
[1742991547489,1.51756945,87995.0,87994.0,0.0001698]
[1742991548844,1.09378514,87995.0,87994.0,0.0001698]
[1742991550842,1.11158512,87995.0,87994.0,0.0001698]
[1742991551972,1.09378514,87995.0,87994.0,0.0001698]
[1742991552806,0.96666514,87995.0,87994.0,0.0001698]
[1742991553013,1.09378514,87995.0,87994.0,0.0001698]
[1742991553315,0.56632614,87995.0,87994.0,0.0001698]
[1742991554010,2.31737914,87995.0,87994.0,0.0001698]
[1742991555785,2.34997768,87995.0,87994.0,0.0001698]
[1742991560059,2.36777797,87995.0,87994.0,0.0001698]
[1742991562577,2.34997768,87995.0,87994.0,0.0001698]
[1742991566386,0.59892468,87995.0,87994.0,0.0001698]
[1742991566801,2.72065468,87995.0,87994.0,0.0001698]
[1742991567002,2.73845479,87995.0,87994.0,0.0001698]
[1742991568413,2.72150979,87995.0,87994.0,0.0001698]
[1742991569755,2.69779379,87995.0,87994.0,0.0001698]
[1742991570471,1.70544779,87995.0,87994.0,0.0001698]
[1742991572818,1.68764768,87995.0,87994.0,0.0001698]
[1742991575833,1.68816768,87995.0,87994.0,0.0001698]
[1742991576746,0.59944468,87995.0,87994.0,0.0001698]
[1742991576911,3.81946802,87995.0,87994.0,0.0001698]
[1742991577116,3.74241802,87995.0,87994.0,0.0001698]
[1742991577317,3.80591367,87995.0,87994.0,0.0001698]
[1742991577524,3.70375867,87995.0,87994.0,0.0001698]
[1742991577741,3.63331167,87995.0,87994.0,0.0001698]
[1742991578597,3.56981602,87995.0,87994.0,0.0001698]
[1742991581228,3.48418202,87995.0,87994.0,0.0001698]
[1742991582474,3.09612368,87995.0,87994.0,0.0001698]
[1742991583378,2.98752968,87995.0,87994.0,0.0001698]
[1742991584778,2.39190468,87995.0,87994.0,0.0001698]
[1742991586516,2.26426468,87995.0,87994.0,0.0001698]
[1742991586720,2.39182468,87995.0,87994.0,0.0001698]
[1742991587093,2.40962492,87995.0,87994.0,0.0001698]
[1742991588077,0.61716492,87995.0,87994.0,0.0001698]
[1742991588482,2.72090092,87995.0,87994.0,0.0001698]
[1742991588973,2.70310068,87995.0,87994.0,0.0001698]
[1742991591004,2.66945668,87995.0,87994.0,0.0001698]
[1742991591511,2.56667868,87995.0,87994.0,0.0001698]
[1742991592593,2.42457868,87995.0,87994.0,0.0001698]
[1742991592799,1.10981068,87995.0,87994.0,0.0780698]
[1742991593021,0.98237068,87995.0,87994.0,0.0780698]
[1742991593199,0.76082568,87995.0,87994.0,0.1234698]
[1742991593429,0.88834568,87995.0,87994.0,0.1234698]
[1742991593856,0.76082568,87995.0,87994.0,0.12752479]
[1742991594057,0.48506704,87995.0,87994.0,0.12752479]
[1742991594492,0.4524685,87995.0,87994.0,0.12752479]
[1742991594711,0.3249485,87995.0,87994.0,0.12752479]
[1742991600867,0.3249485,87995.0,87994.0,0.0455698]
[1742991600868,0.43920614,87995.0,87994.0,0.0455698]
[1742991601072,0.43920614,87995.0,87994.0,0.0001698]
[1742991601282,2.58827289,87995.0,87994.0,0.0001698]
[1742991602484,2.26954089,87995.0,87994.0,0.0001698]
[1742991603054,2.21205989,87995.0,87994.0,0.0001698]
[1742991603252,2.20007489,87995.0,87994.0,0.0001698]
[1742991604434,2.42735989,87995.0,87994.0,0.0001698]
[1742991604649,2.43872389,87995.0,87994.0,0.0001698]
[1742991604851,2.42735989,87995.0,87994.0,0.0001698]
[1742991605259,2.20007489,87995.0,87994.0,0.0001698]
[1742991605467,2.42735989,87995.0,87994.0,0.0001698]
[1742991605668,2.43872389,87995.0,87994.0,0.0001698]
[1742991605863,2.42607665,87995.0,87994.0,0.0001698]
[1742991608347,2.19879165,87995.0,87994.0,0.0001698]
[1742991608563,2.41778871,87995.0,87994.0,0.0001698]
[1742991608930,2.43558862,87995.0,87994.0,0.0001698]
[1742991609127,2.41778871,87995.0,87994.0,0.0001698]
[1742991611311,2.55647271,87995.0,87994.0,0.0001698]
[1742991613118,2.54647271,87995.0,87994.0,0.0001698]
[1742991613318,2.55147271,87995.0,87994.0,0.0001698]
[1742991613618,0.82323571,87995.0,87994.0,0.0001698]
[1742991613820,3.43537671,87995.0,87994.0,0.0001698]
[1742991614457,3.15470671,87995.0,87994.0,0.0001698]
[1742991615573,3.15332071,87995.0,87994.0,0.0001698]
[1742991617109,3.17112148,87995.0,87994.0,0.0001698]
[1742991619601,2.77833048,87995.0,87994.0,0.0001698]
[1742991621395,2.20447648,87995.0,87994.0,0.0001698]
[1742991621523,1.83534848,87995.0,87994.0,0.0001698]
[1742991621728,1.46124371,87995.0,87994.0,0.0001698]
[1742991621934,1.35919971,87995.0,87994.0,0.0829698]
[1742991622510,1.28112771,87995.0,87994.0,0.0829698]
[1742991622884,1.12501871,87995.0,87994.0,0.0829698]
[1742991623115,1.12466971,87995.0,87994.0,0.0829698]
[1742991623325,1.05213171,87995.0,87994.0,0.0829698]
[1742991626470,1.06993122,87995.0,87994.0,0.0829698]
[1742991627405,1.06993122,87995.0,87994.0,0.0001698]
[1742991627613,1.29721622,87995.0,87994.0,0.0001698]
[1742991629672,1.30858022,87995.0,87994.0,0.0001698]
[1742991629932,1.06993122,87995.0,87994.0,0.0001698]
[1742991630346,1.29721622,87995.0,87994.0,0.0001698]
[1742991631600,1.07712347,87995.0,87994.0,0.0001698]
[1742991631875,1.30440847,87995.0,87994.0,0.0001698]
[1742991632280,1.07712347,87995.0,87994.0,0.0001698]
[1742991632641,0.59523296,87995.0,87994.0,0.0001698]
[1742991632843,1.37051996,87995.0,87994.0,0.0001698]
[1742991633890,1.34211396,87995.0,87994.0,0.0001698]
[1742991634107,1.34231396,87995.0,87994.0,0.0001698]
[1742991634329,1.14552996,87995.0,87994.0,0.0001698]
[1742991634541,0.73480296,87995.0,87994.0,0.0001698]
[1742991634674,0.74853596,87995.0,87994.0,0.1222698]
[1742991634871,0.35381532,87995.0,87994.0,0.12632479]
[1742991635214,0.32118357,87995.0,87994.0,0.12632479]
[1742991636184,0.03214075,87995.0,87994.0,0.16575394]
[1742991636382,0.02714075,87995.0,87994.0,0.12859737]
[1742991636607,0.0053396,87995.0,87994.0,0.12859737]
[1742991636862,0.0053396,87995.0,87994.0,0.12632479]
[1742991637174,0.02813685,87995.0,87994.0,0.12859716]
[1742991637577,0.01813685,87995.0,87994.0,0.12859716]
[1742991637865,0.02813685,87995.0,87994.0,0.12632479]
[1742991638080,0.04994059,87995.0,87994.0,0.12632479]
[1742991641476,0.47766059,87995.0,87994.0,0.12632479]
[1742991642651,0.45986334,87995.0,87994.0,0.12632479]
[1742991647194,0.47766105,87995.0,87994.0,0.12632479]
[1742991651343,0.47766105,87995.0,87994.0,0.1222698]
[1742991651553,0.81920369,87995.0,87994.0,0.0001698]
[1742991651680,4.15618698,87995.0,87994.0,0.0001698]
[1742991651913,3.22394428,87995.0,87994.0,0.0001698]
[1742991653163,3.21894428,87995.0,87994.0,0.0001698]
[1742991653330,3.22394428,87995.0,87994.0,0.0001698]
[1742991653810,0.84039828,87995.0,87994.0,0.0001698]
[1742991654010,4.39836328,87995.0,87994.0,0.0001698]
[1742991654238,4.07940128,87995.0,87994.0,0.0001698]
[1742991654441,4.04362128,87995.0,87994.0,0.0001698]
[1742991654701,4.04862128,87995.0,87994.0,0.0001698]
[1742991654874,4.01258928,87995.0,87994.0,0.0001698]
[1742991656347,4.03038924,87995.0,87994.0,0.0001698]
[1742991658829,3.61494824,87995.0,87994.0,0.0001698]
[1742991659942,3.38175424,87995.0,87994.0,0.0001698]
[1742991663011,3.36395428,87995.0,87994.0,0.0001698]
[1742991663208,3.34178828,87995.0,87994.0,0.0001698]
[1742991664473,0.84539828,87995.0,87994.0,0.0001698]
[1742991664676,3.71958228,87995.0,87994.0,0.0001698]
[1742991671136,3.41547128,87995.0,87994.0,0.0001698]
[1742991671698,3.41499128,87995.0,87994.0,0.0001698]
[1742991672141,3.03146928,87995.0,87994.0,0.0001698]
[1742991672347,3.03790537,87995.0,87994.0,0.0001698]
[1742991672544,2.59989828,87995.0,87994.0,0.0807698]
[1742991673204,2.61126228,87995.0,87994.0,0.0807698]
[1742991673911,2.61126228,87995.0,87994.0,0.0001698]
[1742991675098,0.84491828,87995.0,87994.0,0.0001698]
[1742991675313,4.18388128,87995.0,87994.0,0.0001698]
[1742991677025,4.20168067,87995.0,87994.0,0.0001698]
[1742991682682,4.18388128,87995.0,87994.0,0.0001698]
[1742991682984,4.05664128,87995.0,87994.0,0.0001698]
[1742991683248,4.18360128,87995.0,87994.0,0.0001698]
[1742991685718,0.84463828,87995.0,87994.0,0.0001698]
[1742991685931,5.42354628,87995.0,87994.0,0.0001698]
[1742991686432,5.18146928,87995.0,87994.0,0.0001698]
[1742991687463,0.527373,87961.0,87960.0,0.00405499]
[1742991687903,0.55143805,87961.0,87960.0,0.00405499]
[1742991688699,0.32406505,87961.0,87960.0,0.00405499]
[1742991688925,0.32947596,87961.0,87960.0,0.00405499]
[1742991689370,0.3422804,87961.0,87960.0,0.00405499]
[1742991689984,0.3462804,87961.0,87960.0,0.00405499]
[1742991690343,0.3422804,87961.0,87960.0,0.12925499]
[1742991690801,0.3522804,87961.0,87960.0,0.12925499]
[1742991692607,0.33447596,87961.0,87960.0,0.12942459]
[1742991692979,0.33401459,87961.0,87960.0,0.12942459]
[1742991697155,0.35181907,87961.0,87960.0,0.12942459]
[1742991698729,0.70481771,87961.0,87960.0,0.0001696]
[1742991699077,2.80718071,87961.0,87960.0,6e-07]
[1742991699294,0.81328806,87961.0,87960.0,6e-07]
[1742991699466,0.94052806,87961.0,87960.0,6e-07]
[1742991700224,0.93052806,87961.0,87960.0,6e-07]
[1742991700432,0.93552806,87961.0,87960.0,6e-07]
[1742991701287,0.93552806,87961.0,87924.0,0.00405499]
[1742991701288,0.3,87926.0,87924.0,0.00405499]
[1742991701471,2.41116764,87925.0,87924.0,0.00405499]
[1742991701671,2.43509391,87925.0,87924.0,0.00405499]
[1742991701873,2.19625491,87925.0,87924.0,0.00405499]
[1742991702121,1.79542991,87925.0,87924.0,0.00405499]
[1742991702673,1.66860056,87925.0,87924.0,0.00405499]
[1742991702880,0.97975056,87925.0,87924.0,0.00405499]
[1742991703077,0.3,87924.0,87911.0,0.00105499]
[1742991703396,0.09274452,87921.0,87912.0,0.00227452]
[1742991703599,0.32392725,87920.0,87912.0,0.00227452]
[1742991704224,0.55140825,87920.0,87912.0,0.00227452]
[1742991704567,0.011374,87913.0,87912.0,0.00227452]
[1742991704789,0.3,87912.0,87911.0,0.00105499]
[1742991704989,0.93044764,87912.0,87911.0,0.00105499]
[1742991705164,0.95433867,87912.0,87911.0,0.00105499]
[1742991705363,0.96571367,87912.0,87911.0,0.00105499]
[1742991706013,0.82689867,87912.0,87911.0,0.00105499]
[1742991706429,0.95776667,87912.0,87911.0,0.00105499]
[1742991706642,0.15145103,87912.0,87911.0,0.00105499]
[1742991706864,0.15145103,87912.0,87911.0,0.04825499]
[1742991707271,0.02389103,87912.0,87911.0,0.04825499]
[1742991707499,0.02889103,87912.0,87911.0,0.04825499]
[1742991707699,0.03389103,87912.0,87911.0,0.04825499]
[1742991708129,0.03389103,87912.0,87911.0,0.0505297]
[1742991709450,0.05170413,87912.0,87911.0,0.0505297]
[1742991709902,0.04670413,87912.0,87911.0,0.04825499]
[1742991710320,0.05170413,87912.0,87911.0,0.04825499]
[1742991712660,0.03389103,87912.0,87911.0,0.00105499]
[1742991716909,0.03389103,87912.0,87911.0,0.00122479]
[1742991717185,0.05204433,87912.0,87911.0,0.00122479]
[1742991719800,0.35204433,87912.0,87911.0,0.00122479]
[1742991719954,1.04667333,87912.0,87911.0,0.00122479]
[1742991720307,1.46453097,87912.0,87911.0,0.00122479]
[1742991720516,1.38843097,87912.0,87911.0,0.00122479]
[1742991720716,1.37061727,87912.0,87911.0,0.00122479]
[1742991720921,1.38199227,87912.0,87911.0,0.00122479]
[1742991721123,1.37699227,87912.0,87911.0,0.00122479]
[1742991721327,1.13811727,87912.0,87911.0,0.00122479]
[1742991721527,1.51199227,87912.0,87911.0,0.00122479]
[1742991722236,1.50699227,87912.0,87911.0,0.00122479]
[1742991722543,1.51199227,87912.0,87911.0,0.00122479]
[1742991726007,1.38199227,87912.0,87911.0,0.00122479]
[1742991726215,1.51191227,87912.0,87911.0,0.00122479]
[1742991726899,1.52972834,87912.0,87911.0,0.00122479]
[1742991728104,0.83509934,87912.0,87911.0,0.00122479]
[1742991728472,5.83509934,87912.0,87911.0,0.00122479]
[1742991728811,4.36134834,87912.0,87911.0,0.00122479]
[1742991729645,3.71799834,87912.0,87911.0,0.00122479]
[1742991731688,3.70018227,87912.0,87911.0,0.00122479]
[1742991732973,3.69889899,87912.0,87911.0,0.00122479]
[1742991735070,3.77409899,87912.0,87911.0,0.00122479]
[1742991735270,3.67673674,87912.0,87911.0,0.00122479]
[1742991735642,3.80645674,87912.0,87911.0,0.00122479]
[1742991736141,3.81927442,87912.0,87911.0,0.00122479]
[1742991737023,3.82427442,87912.0,87911.0,0.00122479]
[1742991737173,3.81927442,87912.0,87911.0,0.00122479]
[1742991737624,3.82427442,87912.0,87911.0,0.00122479]
[1742991737824,3.81927442,87912.0,87911.0,0.00122479]
[1742991738128,3.82427442,87912.0,87911.0,0.00122479]
[1742991738486,0.94137542,87912.0,87911.0,0.00122479]
[1742991738686,4.91732342,87912.0,87911.0,0.00122479]
[1742991738915,4.75444642,87912.0,87911.0,0.00122479]
[1742991739109,4.61166667,87912.0,87911.0,0.00122479]
[1742991739316,1.70398567,87912.0,87911.0,0.00122479]
[1742991739544,2.06128567,87912.0,87911.0,0.00122479]
[1742991739748,2.24286067,87912.0,87911.0,0.00122479]
[1742991739915,2.45276067,87912.0,87911.0,0.00122479]
[1742991740130,2.48532986,87912.0,87911.0,0.00122479]
[1742991742472,2.46751218,87912.0,87911.0,0.00122479]
[1742991746061,2.46251218,87912.0,87911.0,0.00122479]
[1742991746468,2.47251218,87912.0,87911.0,0.00122479]
[1742991746954,2.46251218,87912.0,87911.0,0.00122479]
[1742991747362,2.46255218,87912.0,87911.0,0.00122479]
[1742991747583,2.46755218,87912.0,87911.0,0.00122479]
[1742991749145,0.92858918,87912.0,87911.0,0.00122479]
[1742991749603,5.91438418,87912.0,87911.0,0.00122479]
[1742991750014,5.44574318,87912.0,87911.0,0.00122479]
[1742991753411,5.29462518,87912.0,87911.0,0.00122479]
[1742991753614,5.16478518,87912.0,87911.0,0.00122479]
[1742991753816,5.29450518,87912.0,87911.0,0.00122479]
[1742991756663,5.20980718,87912.0,87911.0,0.00122479]
[1742991756826,5.27001939,87912.0,87911.0,0.00122479]
[1742991757194,4.94947239,87912.0,87911.0,0.00122479]
[1742991757402,5.07931239,87912.0,87911.0,0.00122479]
[1742991758031,5.01910018,87912.0,87911.0,0.00122479]
[1742991762367,4.57788518,87912.0,87911.0,0.00122479]
[1742991762583,0.50087218,87912.0,87911.0,0.04962479]
[1742991762873,0.80087218,87912.0,87911.0,0.04962479]
[1742991763080,0.93051218,87912.0,87911.0,0.04962479]
[1742991763461,0.38661454,87912.0,87911.0,0.12632479]
[1742991763664,0.06551654,87912.0,87911.0,0.12632479]
[1742991764231,0.02794735,87912.0,87911.0,0.12632479]
[1742991764428,0.0103396,87912.0,87911.0,0.12632479]
[1742991764851,0.0053396,87912.0,87911.0,0.12632479]
[1742991765145,0.02514872,87912.0,87911.0,0.12632479]
[1742991765350,0.0053396,87912.0,87911.0,0.12632479]
[1742991765623,0.15466872,87912.0,87911.0,0.12632479]
[1742991765833,0.4398596,87912.0,87911.0,0.12632479]
[1742991766034,0.47748234,87912.0,87911.0,0.12632479]
[1742991766381,0.47744234,87912.0,87911.0,0.12632479]
[1742991768219,0.34796234,87912.0,87911.0,0.12632479]
[1742991768424,0.47736234,87912.0,87911.0,0.12632479]
[1742991772051,0.45954786,87912.0,87911.0,0.12632479]
[1742991775811,0.33014786,87912.0,87911.0,0.12632479]
[1742991776014,0.45926786,87912.0,87911.0,0.12632479]
[1742991776371,0.47708231,87912.0,87911.0,0.12632479]
[1742991776938,0.34796231,87912.0,87911.0,0.12632479]
[1742991777138,0.47716231,87912.0,87911.0,0.12632479]
[1742991780292,0.47716231,87912.0,87911.0,0.04962479]
[1742991780652,0.34796231,87912.0,87911.0,0.04962479]
[1742991780859,0.47708231,87912.0,87911.0,0.04962479]
[1742991781060,0.34796231,87912.0,87911.0,0.12602479]
[1742991781541,0.33014786,87912.0,87911.0,0.12602479]
[1742991784430,0.33014786,87912.0,87911.0,0.14056564]
[1742991784634,0.33014786,87912.0,87911.0,0.14284033]
[1742991784964,0.3103396,87912.0,87911.0,0.14284033]
[1742991785174,0.32688731,87912.0,87911.0,0.14284033]
[1742991785795,0.32688731,87912.0,87911.0,0.14056564]
[1742991786004,0.32815377,87912.0,87911.0,0.14056564]
[1742991786202,0.34470481,87912.0,87911.0,0.14056564]
[1742991792344,0.34470481,87912.0,87911.0,0.12602479]
[1742991792550,0.32689064,87912.0,87911.0,0.12602479]
[1742991792768,0.3103396,87912.0,87911.0,0.1489108]
[1742991793162,0.32689064,87912.0,87911.0,0.12602479]
[1742991796176,0.32689064,87912.0,87911.0,0.04962479]
[1742991796623,0.3103396,87912.0,87911.0,0.00122479]
[1742991797032,0.3281533,87912.0,87911.0,0.00122479]
[1742991797205,0.34471276,87912.0,87911.0,0.00122479]
[1742991797536,1.10995076,87912.0,87911.0,0.00122479]
[1742991798419,0.93933776,87912.0,87911.0,0.00122479]
[1742991798657,0.70767076,87912.0,87911.0,0.00122479]
[1742991799801,0.34471276,87912.0,87911.0,0.00122479]
[1742991800417,1.45272576,87912.0,87911.0,0.00122479]
[1742991800858,1.23498576,87912.0,87911.0,0.00122479]
[1742991801061,1.22216376,87912.0,87911.0,0.00122479]
[1742991801473,0.34471276,87912.0,87911.0,0.00122479]
[1742991801976,0.46464976,87912.0,87911.0,0.00122479]
[1742991802140,0.59336976,87912.0,87911.0,0.00122479]
[1742991802692,0.57555606,87912.0,87911.0,0.00122479]
[1742991807164,0.59337104,87912.0,87911.0,0.00122479]
[1742991807447,0.70762868,87912.0,87911.0,0.00122479]
[1742991808706,0.70262868,87912.0,87911.0,0.00122479]
[1742991809119,0.70762868,87912.0,87911.0,0.00122479]
[1742991809326,0.93512868,87912.0,87911.0,0.00122479]
[1742991809502,0.70762868,87912.0,87911.0,0.00122479]
[1742991810299,0.81519168,87912.0,87911.0,0.00122479]
[1742991810487,3.00768168,87912.0,87911.0,0.00122479]
[1742991811066,3.01905668,87912.0,87911.0,0.00122479]
[1742991812035,2.59905668,87912.0,87911.0,0.00122479]
[1742991812571,2.5812417,87912.0,87911.0,0.00122479]
[1742991812969,2.69243676,87912.0,87911.0,0.00122479]
[1742991814002,2.68743676,87912.0,87911.0,0.00122479]
[1742991814179,2.68243676,87912.0,87911.0,0.00122479]
[1742991814657,2.68743676,87912.0,87911.0,0.00122479]
[1742991815430,2.69243676,87912.0,87911.0,0.00122479]
[1742991816065,2.68743676,87912.0,87911.0,0.00122479]
[1742991816266,2.69243676,87912.0,87911.0,0.00122479]
[1742991818567,2.68743676,87912.0,87911.0,0.00122479]
[1742991818883,2.68243676,87912.0,87911.0,0.00122479]
[1742991819468,2.69243676,87912.0,87911.0,0.00122479]
[1742991819872,2.68743676,87912.0,87911.0,0.00122479]
[1742991820253,2.69243676,87912.0,87911.0,0.00122479]
[1742991820930,1.33154676,87912.0,87911.0,0.00122479]
[1742991821106,6.33154676,87912.0,87911.0,0.00122479]
[1742991821677,6.32654676,87912.0,87911.0,0.00122479]
[1742991821859,6.32154676,87912.0,87911.0,0.00122479]
[1742991822088,6.33154676,87912.0,87911.0,0.00122479]
[1742991822313,6.06063976,87912.0,87911.0,0.00122479]
[1742991822998,5.57277576,87912.0,87911.0,0.00122479]
[1742991824873,5.44405576,87912.0,87911.0,0.00122479]
[1742991825009,5.57221576,87912.0,87911.0,0.00122479]
[1742991825644,5.44405576,87912.0,87911.0,0.00122479]
[1742991825877,3.80142076,87912.0,87911.0,0.00122479]
[1742991826113,2.77057476,87912.0,87911.0,0.00122479]
[1742991826284,1.8946777,87912.0,87911.0,0.00122479]
[1742991826633,1.6582757,87912.0,87911.0,0.00122479]
[1742991826781,0.9907777,87912.0,87911.0,0.00122479]
[1742991826983,0.8008217,87912.0,87911.0,0.07962479]
[1742991827188,1.1678967,87912.0,87911.0,0.07962479]
[1742991827390,1.1628967,87912.0,87911.0,0.07962479]
[1742991827746,0.9290217,87912.0,87911.0,0.07962479]
[1742991827969,0.6304947,87912.0,87911.0,0.07962479]
[1742991828173,0.7588147,87912.0,87911.0,0.07962479]
[1742991828599,0.7488147,87912.0,87911.0,0.07962479]
[1742991828808,0.33831089,87912.0,87911.0,0.00122479]
[1742991829014,0.71550589,87912.0,87911.0,0.00122479]
[1742991829223,1.01550589,87912.0,87911.0,0.00122479]
[1742991829401,1.01050589,87912.0,87911.0,0.00122479]
[1742991829792,1.01550589,87912.0,87911.0,0.00122479]
[1742991831188,1.01050589,87912.0,87911.0,0.00122479]
[1742991831309,1.01550589,87912.0,87911.0,0.00122479]
[1742991831511,0.8083517,87912.0,87911.0,0.00122479]
[1742991831714,1.9946857,87912.0,87911.0,0.00122479]
[1742991831960,1.8356867,87912.0,87911.0,0.00122479]
[1742991834566,1.7073667,87912.0,87911.0,0.00122479]
[1742991834767,1.8354867,87912.0,87911.0,0.00122479]
[1742991838521,1.2035927,87912.0,87911.0,0.00122479]
[1742991838777,1.0103687,87912.0,87911.0,0.00122479]
[1742991838962,0.5348617,87912.0,87911.0,0.08052479]
[1742991839161,0.3770577,87912.0,87911.0,0.08052479]
[1742991839361,0.5050577,87912.0,87911.0,0.08052479]
[1742991839757,0.8050577,87912.0,87911.0,0.08052479]
[1742991840364,0.45485906,87912.0,87911.0,0.08052479]
[1742991840590,0.32689906,87912.0,87911.0,0.12602479]
[1742991840771,2.2646217,87912.0,87911.0,0.00122479]
[1742991840973,5.27580131,87912.0,87911.0,0.00122479]
[1742991841227,5.16821831,87912.0,87911.0,0.00122479]
[1742991841427,5.15156131,87912.0,87911.0,0.00122479]
[1742991842060,0.71257131,87912.0,87911.0,0.00122479]
[1742991842313,5.73038877,87912.0,87911.0,0.00122479]
[1742991842724,5.45946931,87912.0,87911.0,0.00122479]
[1742991844261,5.44946931,87912.0,87911.0,0.00122479]
[1742991844473,5.45446931,87912.0,87911.0,0.00122479]
[1742991844672,5.45946931,87912.0,87911.0,0.00122479]
[1742991847062,0.238888,87907.0,87906.0,3.9e-07]
[1742991847202,1.17628525,87907.0,87906.0,3.9e-07]
[1742991847408,1.32093221,87907.0,87906.0,3.9e-07]
[1742991848445,1.32593221,87907.0,87906.0,3.9e-07]
[1742991849964,1.33093221,87907.0,87906.0,3.9e-07]
[1742991850377,1.20277221,87907.0,87906.0,3.9e-07]
[1742991850526,1.33081221,87907.0,87906.0,3.9e-07]
[1742991850949,1.25181221,87907.0,87906.0,3.9e-07]
[1742991852227,1.25173221,87907.0,87906.0,3.9e-07]
[1742991853490,0.84013221,87907.0,87906.0,3.9e-07]
[1742991854524,0.84009221,87907.0,87906.0,3.9e-07]
[1742991854702,0.71217221,87907.0,87906.0,3.9e-07]
[1742991854997,0.5075526,87907.0,87906.0,3.9e-07]
[1742991855560,0.8075526,87907.0,87906.0,3.9e-07]
[1742991855766,0.1407446,87907.0,87906.0,3.9e-07]
[1742991855965,0.15436696,87907.0,87906.0,3.9e-07]
[1742991856692,0.14436696,87907.0,87906.0,3.9e-07]
[1742991857016,0.14936696,87907.0,87906.0,3.9e-07]
[1742991857358,0.15436696,87907.0,87906.0,3.9e-07]
[1742991860356,0.45436696,87907.0,87906.0,3.9e-07]
[1742991864840,0.32648696,87907.0,87906.0,3.9e-07]
[1742991866180,0.04430322,87907.0,87906.0,0.07950039]
[1742991866726,0.04430322,87907.0,87906.0,0.32383095]
[1742991866727,0.02781626,87907.0,87906.0,0.32383095]
[1742991866996,0.02781626,87907.0,87906.0,0.37055624]
[1742991867480,0.02781626,87907.0,87906.0,0.39369501]
[1742991867886,0.02781626,87907.0,87906.0,0.16618001]
[1742991868083,0.02281626,87907.0,87906.0,0.16845478]
[1742991868426,0.02281626,87907.0,87906.0,0.39596978]
[1742991868628,0.02281626,87907.0,87906.0,0.39369501]
[1742991868769,0.02781626,87907.0,87906.0,0.39369501]
[1742991869408,0.02781626,87907.0,87906.0,0.16618001]
[1742991869630,0.02781626,87907.0,87906.0,0.16845467]